[Event "*** SCC Grand Prix: Titled Tuesday Blitz"]
[Site "Chess.com"]
[Date "2020.07.14"]
[Round "1"]
[White "ChelsieMonica"]
[Black "VerdeNotte"]
[Result "1-0"]
[WhiteElo "2419"]
[BlackElo "2782"]
[TimeControl "180+1"]
[EndTime "10:10:20 PDT"]
[Termination "ChelsieMonica won by checkmate"]

1. c4 {[%clk 0:03:00.4]} 1... g6 {[%clk 0:02:58.5]} 2. Nc3 {[%clk 0:02:59.6]}
2... Bg7 {[%clk 0:02:58.8]} 3. Nf3 {[%clk 0:02:58.4]} 3... c5 {[%clk 0:02:58.8]}
4. e3 {[%clk 0:02:58.7]} 4... Nf6 {[%clk 0:02:58]} 5. Be2 {[%clk 0:02:59.4]}
5... d5 {[%clk 0:02:56.2]} 6. O-O {[%clk 0:03:00.3]} 6... d4 {[%clk 0:02:55.3]}
7. exd4 {[%clk 0:02:17.2]} 7... cxd4 {[%clk 0:02:54.5]} 8. Nd5 {[%clk
0:02:17.6]} 8... Nxd5 {[%clk 0:02:51.3]} 9. cxd5 {[%clk 0:02:16.9]} 9... Qxd5
{[%clk 0:02:51.1]} 10. d3 {[%clk 0:02:12.6]} 10... O-O {[%clk 0:02:50.8]} 11.
Bd2 {[%clk 0:02:11.5]} 11... Nc6 {[%clk 0:02:49.1]} 12. a3 {[%clk 0:02:11.2]}
12... a5 {[%clk 0:02:45.3]} 13. Rc1 {[%clk 0:02:11.3]} 13... a4 {[%clk
0:02:42.9]} 14. h3 {[%clk 0:01:45.2]} 14... h6 {[%clk 0:02:40.9]} 15. Ne1 {[%clk
0:01:44.7]} 15... Be6 {[%clk 0:02:38.6]} 16. Nc2 {[%clk 0:01:44.4]} 16... Qb3
{[%clk 0:02:29.2]} 17. Rb1 {[%clk 0:01:44.6]} 17... Rfc8 {[%clk 0:02:27.3]} 18.
f4 {[%clk 0:01:40.3]} 18... Bf5 {[%clk 0:02:20.5]} 19. Rf3 {[%clk 0:01:39.2]}
19... e5 {[%clk 0:02:12.6]} 20. g4 {[%clk 0:01:34.7]} 20... Be6 {[%clk
0:02:10.7]} 21. f5 {[%clk 0:01:30]} 21... Bd5 {[%clk 0:02:10.6]} 22. Rg3 {[%clk
0:01:30.2]} 22... e4 {[%clk 0:02:09.1]} 23. Bf4 {[%clk 0:01:25]} 23... e3 {[%clk
0:02:05.1]} 24. h4 {[%clk 0:01:19.1]} 24... Na5 {[%clk 0:01:44.6]} 25. Nb4
{[%clk 0:01:12.9]} 25... Qxd1+ {[%clk 0:01:43.9]} 26. Bxd1 {[%clk 0:01:11.3]}
26... Ba2 {[%clk 0:01:42.8]} 27. Nxa2 {[%clk 0:01:09.8]} 27... Nb3 {[%clk
0:01:38]} 28. Bxb3 {[%clk 0:01:04.1]} 28... axb3 {[%clk 0:01:38.2]} 29. Nc1
{[%clk 0:01:04.4]} 29... Ra5 {[%clk 0:01:24.5]} 30. Nxb3 {[%clk 0:00:59.7]}
30... Rb5 {[%clk 0:01:23.1]} 31. Nc1 {[%clk 0:01:00.3]} 31... Bf6 {[%clk
0:01:07.4]} 32. fxg6 {[%clk 0:00:57.2]} 32... Bxh4 {[%clk 0:01:03.4]} 33. gxf7+
{[%clk 0:00:56.5]} 33... Kxf7 {[%clk 0:01:03.3]} 34. Rg2 {[%clk 0:00:57.4]}
34... Bf2+ {[%clk 0:01:01]} 35. Kf1 {[%clk 0:00:57.4]} 35... Rc2 {[%clk
0:00:46.3]} 36. b4 {[%clk 0:00:53.3]} 36... Rd2 {[%clk 0:00:38]} 37. Bxh6 {[%clk
0:00:32]} 37... Rd1+ {[%clk 0:00:37.9]} 38. Ke2 {[%clk 0:00:32.5]} 38... Re1+
{[%clk 0:00:38.4]} 39. Kf3 {[%clk 0:00:32.9]} 39... Rb6 {[%clk 0:00:38.9]} 40.
Bf4 {[%clk 0:00:30.8]} 40... Rc6 {[%clk 0:00:30.9]} 41. Rb2 {[%clk 0:00:25.1]}
41... Rexc1 {[%clk 0:00:20.1]} 42. Rgxf2 {[%clk 0:00:24.1]} 42... exf2 {[%clk
0:00:20.1]} 43. Rxf2 {[%clk 0:00:24.8]} 43... R1c3 {[%clk 0:00:16.7]} 44. Ke4
{[%clk 0:00:24.3]} 44... Ke6 {[%clk 0:00:10.7]} 45. Be5 {[%clk 0:00:21.9]} 45...
Rxa3 {[%clk 0:00:09.6]} 46. Bxd4 {[%clk 0:00:22]} 46... Ke7 {[%clk 0:00:04.9]}
47. Bc5+ {[%clk 0:00:20.7]} 47... Kd7 {[%clk 0:00:05.4]} 48. d4 {[%clk
0:00:19.6]} 48... Re6+ {[%clk 0:00:05]} 49. Kd5 {[%clk 0:00:19.5]} 49... Rae3
{[%clk 0:00:04.4]} 50. Rf7+ {[%clk 0:00:19.4]} 50... Kc8 {[%clk 0:00:04.9]} 51.
g5 {[%clk 0:00:19.7]} 51... Rg6 {[%clk 0:00:02.1]} 52. Be7 {[%clk 0:00:18.3]}
52... Kc7 {[%clk 0:00:01.1]} 53. Bf6+ {[%clk 0:00:17.9]} 53... Kb6 {[%clk
0:00:01.8]} 54. Bd8+ {[%clk 0:00:16.2]} 54... Ka6 {[%clk 0:00:02.4]} 55. b5+
{[%clk 0:00:15.9]} 55... Kxb5 {[%clk 0:00:02.8]} 56. Rxb7+ {[%clk 0:00:16]}
56... Ka4 {[%clk 0:00:03.7]} 57. Kc5 {[%clk 0:00:14.6]} 57... Rc3+ {[%clk
0:00:03.4]} 58. Kd5 {[%clk 0:00:15.1]} 58... Rc8 {[%clk 0:00:02.8]} 59. Be7
{[%clk 0:00:14.7]} 59... Ka5 {[%clk 0:00:02.9]} 60. Ra7+ {[%clk 0:00:14.6]}
60... Kb6 {[%clk 0:00:03.1]} 61. Rd7 {[%clk 0:00:15.5]} 61... Rcc6 {[%clk
0:00:02.3]} 62. Bf6 {[%clk 0:00:15.5]} 62... Rc1 {[%clk 0:00:02.1]} 63. Rd6+
{[%clk 0:00:15.8]} 63... Kb5 {[%clk 0:00:02.6]} 64. Rd8 {[%clk 0:00:15.3]} 64...
Rd1 {[%clk 0:00:02.7]} 65. Rb8+ {[%clk 0:00:15.6]} 65... Ka4 {[%clk 0:00:03.2]}
66. Kc4 {[%clk 0:00:15.7]} 66... Rc1+ {[%clk 0:00:03.7]} 67. Kd3 {[%clk
0:00:15.7]} 67... Rc6 {[%clk 0:00:03.5]} 68. d5 {[%clk 0:00:15.8]} 68... Rc1
{[%clk 0:00:02.8]} 69. Kd4 {[%clk 0:00:14.5]} 69... Rd1+ {[%clk 0:00:02.3]} 70.
Kc5 {[%clk 0:00:14.6]} 70... Rf1 {[%clk 0:00:03.2]} 71. Kc6 {[%clk 0:00:14.6]}
71... Rc1+ {[%clk 0:00:03.4]} 72. Kd7 {[%clk 0:00:14.8]} 72... Ka5 {[%clk
0:00:03.9]} 73. d6 {[%clk 0:00:15.3]} 73... Ka6 {[%clk 0:00:04.2]} 74. Kd8
{[%clk 0:00:15.3]} 74... Ka7 {[%clk 0:00:04.6]} 75. Rb2 {[%clk 0:00:14.8]} 75...
Rg8+ {[%clk 0:00:04.4]} 76. Kd7 {[%clk 0:00:14.7]} 76... Rb8 {[%clk 0:00:03.8]}
77. Ra2+ {[%clk 0:00:14]} 77... Kb7 {[%clk 0:00:04]} 78. Re2 {[%clk 0:00:14.4]}
78... Rb1 {[%clk 0:00:03.6]} 79. g6 {[%clk 0:00:14.7]} 79... Rg1 {[%clk
0:00:03.2]} 80. g7 {[%clk 0:00:15.2]} 80... Ka6 {[%clk 0:00:03.6]} 81. Re7
{[%clk 0:00:15.7]} 81... Rb7+ {[%clk 0:00:03.7]} 82. Ke6 {[%clk 0:00:16.2]}
82... Rb8 {[%clk 0:00:02.6]} 83. Kf7 {[%clk 0:00:16.7]} 83... Kb5 {[%clk
0:00:02.7]} 84. d7 {[%clk 0:00:17.2]} 84... Kc6 {[%clk 0:00:03]} 85. Re8 {[%clk
0:00:17.1]} 85... Rb7 {[%clk 0:00:03.5]} 86. g8=Q {[%clk 0:00:15.3]} 86... Rxd7+
{[%clk 0:00:03.8]} 87. Be7 {[%clk 0:00:15.7]} 87... Rxg8 {[%clk 0:00:04.7]} 88.
Rxg8 {[%clk 0:00:16.4]} 88... Rd1 {[%clk 0:00:05.1]} 89. Ke6 {[%clk 0:00:16]}
89... Re1+ {[%clk 0:00:05.1]} 90. Kf7 {[%clk 0:00:16.1]} 90... Rf1+ {[%clk
0:00:05.5]} 91. Bf6 {[%clk 0:00:16.7]} 91... Kd5 {[%clk 0:00:05.4]} 92. Rd8+
{[%clk 0:00:16.8]} 92... Kc4 {[%clk 0:00:05.8]} 93. Ke6 {[%clk 0:00:17.3]} 93...
Re1+ {[%clk 0:00:05.4]} 94. Be5 {[%clk 0:00:17.9]} 94... Rh1 {[%clk 0:00:06.3]}
95. Rc8+ {[%clk 0:00:18.1]} 95... Kb4 {[%clk 0:00:05.4]} 96. Kd5 {[%clk
0:00:18.6]} 96... Rh5 {[%clk 0:00:05.2]} 97. Rb8+ {[%clk 0:00:18.7]} 97... Ka5
{[%clk 0:00:05.2]} 98. Kd4 {[%clk 0:00:18.4]} 98... Ka6 {[%clk 0:00:05.2]} 99.
Rb2 {[%clk 0:00:18.3]} 99... Rg5 {[%clk 0:00:04.1]} 100. Bd6 {[%clk 0:00:18.4]}
100... Rh5 {[%clk 0:00:03.8]} 101. Kc4 {[%clk 0:00:18.4]} 101... Rh4+ {[%clk
0:00:02.7]} 102. Kc5 {[%clk 0:00:18.2]} 102... Ka7 {[%clk 0:00:01.8]} 103. Kc6
{[%clk 0:00:18.4]} 103... Rc4+ {[%clk 0:00:01.9]} 104. Bc5+ {[%clk 0:00:18]}
104... Ka8 {[%clk 0:00:02.4]} 105. Kb6 {[%clk 0:00:15.7]} 105... Rh4 {[%clk
0:00:01.9]} 106. Ra2+ {[%clk 0:00:15.4]} 106... Kb8 {[%clk 0:00:01.9]} 107. Kc6
{[%clk 0:00:15.9]} 107... Rc4 {[%clk 0:00:01.2]} 108. Kb5 {[%clk 0:00:15.9]}
108... Rc1 {[%clk 0:00:01.5]} 109. Kb6 {[%clk 0:00:15.9]} 109... Kc8 {[%clk
0:00:01.4]} 110. Kc6 {[%clk 0:00:15.8]} 110... Kb8 {[%clk 0:00:02]} 111. Rg2
{[%clk 0:00:14.4]} 111... Rg1 {[%clk 0:00:01.8]} 112. Rxg1 {[%clk 0:00:13.7]}
112... Ka8 {[%clk 0:00:02.3]} 113. Rg8# {[%clk 0:00:13.9]} 1-0

[Event "*** SCC Grand Prix: Titled Tuesday Blitz"]
[Site "Chess.com"]
[Date "2020.07.14"]
[Round "1"]
[White "harlem4brew"]
[Black "DivyaDeshmukh23"]
[Result "0-1"]
[WhiteElo "2120"]
[BlackElo "2497"]
[TimeControl "180+1"]
[EndTime "10:10:22 PDT"]
[Termination "DivyaDeshmukh23 won by checkmate"]

1. e4 {[%clk 0:03:00.8]} 1... c5 {[%clk 0:02:56.8]} 2. Nf3 {[%clk 0:03:00.4]}
2... d6 {[%clk 0:02:54.1]} 3. d4 {[%clk 0:02:58.8]} 3... cxd4 {[%clk 0:02:55]}
4. Nxd4 {[%clk 0:02:58.3]} 4... Nf6 {[%clk 0:02:54.3]} 5. Nc3 {[%clk 0:02:57.8]}
5... Nc6 {[%clk 0:02:52]} 6. Bb5 {[%clk 0:02:56.6]} 6... Bd7 {[%clk 0:02:30.3]}
7. O-O {[%clk 0:02:53.2]} 7... e5 {[%clk 0:02:18.8]} 8. Nb3 {[%clk 0:02:42.5]}
8... Be7 {[%clk 0:01:27.8]} 9. Be3 {[%clk 0:02:39.7]} 9... O-O {[%clk
0:01:27.5]} 10. a4 {[%clk 0:02:37.5]} 10... a6 {[%clk 0:01:27.5]} 11. Be2 {[%clk
0:02:36.6]} 11... Rc8 {[%clk 0:01:26.6]} 12. a5 {[%clk 0:02:36.5]} 12... Be6
{[%clk 0:01:24.4]} 13. Bb6 {[%clk 0:02:36.1]} 13... Qd7 {[%clk 0:01:24.7]} 14.
Nd2 {[%clk 0:02:35.1]} 14... d5 {[%clk 0:01:24.2]} 15. exd5 {[%clk 0:02:32.4]}
15... Nxd5 {[%clk 0:01:25.1]} 16. Nce4 {[%clk 0:02:28.2]} 16... f5 {[%clk
0:01:24]} 17. Nc5 {[%clk 0:02:26.5]} 17... Bxc5 {[%clk 0:01:24.1]} 18. Bxc5
{[%clk 0:02:26.3]} 18... Rfd8 {[%clk 0:01:24.1]} 19. Nc4 {[%clk 0:02:25.8]}
19... Qc7 {[%clk 0:01:18.6]} 20. Qe1 {[%clk 0:02:21.2]} 20... Nd4 {[%clk
0:01:17]} 21. Bxd4 {[%clk 0:02:19.7]} 21... exd4 {[%clk 0:01:17.9]} 22. Bd3
{[%clk 0:02:19.4]} 22... Bf7 {[%clk 0:01:15.9]} 23. Qe5 {[%clk 0:02:17.4]} 23...
Qxe5 {[%clk 0:01:13.8]} 24. Nxe5 {[%clk 0:02:18.3]} 24... Be6 {[%clk 0:01:11.6]}
25. g3 {[%clk 0:02:17.7]} 25... Nb4 {[%clk 0:01:11]} 26. Rfc1 {[%clk 0:02:14]}
26... Rc5 {[%clk 0:01:08]} 27. f4 {[%clk 0:02:12.5]} 27... Rdc8 {[%clk
0:01:05.7]} 28. Ra4 {[%clk 0:01:59.5]} 28... Nxd3 {[%clk 0:00:43.4]} 29. Nxd3
{[%clk 0:01:58.8]} 29... Rd5 {[%clk 0:00:40]} 30. Rb4 {[%clk 0:01:51.7]} 30...
Rd7 {[%clk 0:00:37.5]} 31. Ne5 {[%clk 0:01:49.7]} 31... Rd5 {[%clk 0:00:32.5]}
32. Nd3 {[%clk 0:01:43]} 32... Rc7 {[%clk 0:00:29.9]} 33. Rb6 {[%clk 0:01:41.8]}
33... Bf7 {[%clk 0:00:29.6]} 34. Nb4 {[%clk 0:01:36.2]} 34... Rxa5 {[%clk
0:00:28.3]} 35. Rd6 {[%clk 0:01:33.2]} 35... g6 {[%clk 0:00:26.5]} 36. Nd3
{[%clk 0:01:29.1]} 36... Ra4 {[%clk 0:00:22.7]} 37. Rd8+ {[%clk 0:01:23.5]}
37... Kg7 {[%clk 0:00:22.6]} 38. Kf2 {[%clk 0:01:18.9]} 38... Rac4 {[%clk
0:00:22.6]} 39. Ne1 {[%clk 0:01:14.7]} 39... b5 {[%clk 0:00:22.2]} 40. b3 {[%clk
0:01:12.5]} 40... Rc3 {[%clk 0:00:20.9]} 41. Rd1 {[%clk 0:01:09.7]} 41... Rxc2+
{[%clk 0:00:14.1]} 42. Nxc2 {[%clk 0:01:09.2]} 42... Rxc2+ {[%clk 0:00:15]} 43.
Kg1 {[%clk 0:01:08.2]} 43... Bxb3 {[%clk 0:00:14.5]} 44. R1xd4 {[%clk
0:01:07.4]} 44... Rc1+ {[%clk 0:00:13.7]} 45. Kg2 {[%clk 0:01:06.2]} 45... Rc2+
{[%clk 0:00:14.6]} 46. Kh3 {[%clk 0:01:05.9]} 46... a5 {[%clk 0:00:15.1]} 47.
R4d7+ {[%clk 0:01:05.4]} 47... Kf6 {[%clk 0:00:13.1]} 48. Rxh7 {[%clk
0:01:03.3]} 48... a4 {[%clk 0:00:10.1]} 49. Rf8+ {[%clk 0:01:02.1]} 49... Ke6
{[%clk 0:00:09.9]} 50. Rg7 {[%clk 0:01:02.3]} 50... Kd5 {[%clk 0:00:09.6]} 51.
Rd8+ {[%clk 0:01:01.5]} 51... Kc4 {[%clk 0:00:09.4]} 52. Rxg6 {[%clk 0:01:00.3]}
52... a3 {[%clk 0:00:08.5]} 53. Ra8 {[%clk 0:00:59]} 53... Ba4 {[%clk 0:00:07]}
54. Rc6+ {[%clk 0:00:58.4]} 54... Kb3 {[%clk 0:00:07.3]} 55. Re6 {[%clk
0:00:55.4]} 55... a2 {[%clk 0:00:06.9]} 56. Re3+ {[%clk 0:00:55.2]} 56... Kb2
{[%clk 0:00:06.4]} 57. Re1 {[%clk 0:00:54.8]} 57... Rc1 {[%clk 0:00:06.7]} 58.
Re2+ {[%clk 0:00:54.9]} 58... Rc2 {[%clk 0:00:07]} 59. Re1 {[%clk 0:00:55]}
59... a1=Q {[%clk 0:00:07.3]} 60. Rxa1 {[%clk 0:00:54.9]} 60... Kxa1 {[%clk
0:00:08.2]} 61. Kh4 {[%clk 0:00:52.7]} 61... Rxh2+ {[%clk 0:00:07.7]} 62. Kg5
{[%clk 0:00:52.4]} 62... Rg2 {[%clk 0:00:06.5]} 63. Kxf5 {[%clk 0:00:52]} 63...
Rxg3 {[%clk 0:00:07.1]} 64. Kf6 {[%clk 0:00:51.7]} 64... Kb2 {[%clk 0:00:07.4]}
65. f5 {[%clk 0:00:51.3]} 65... Kc3 {[%clk 0:00:07.8]} 66. Ke7 {[%clk
0:00:49.8]} 66... b4 {[%clk 0:00:07.8]} 67. f6 {[%clk 0:00:49.1]} 67... Re3+
{[%clk 0:00:08.4]} 68. Kd6 {[%clk 0:00:47.7]} 68... Bb3 {[%clk 0:00:07.9]} 69.
Rc8+ {[%clk 0:00:46.5]} 69... Kb2 {[%clk 0:00:07.4]} 70. Rb8 {[%clk 0:00:45.3]}
70... Kc3 {[%clk 0:00:07.5]} 71. Rc8+ {[%clk 0:00:44.9]} 71... Kd4 {[%clk
0:00:06.9]} 72. Rb8 {[%clk 0:00:43.4]} 72... Re6+ {[%clk 0:00:03.8]} 73. Kd7
{[%clk 0:00:43.3]} 73... Rxf6 {[%clk 0:00:01.9]} 74. Rxb4+ {[%clk 0:00:43.1]}
74... Bc4 {[%clk 0:00:02.6]} 75. Ke7 {[%clk 0:00:42.7]} 75... Rf3 {[%clk
0:00:02.6]} 76. Rb6 {[%clk 0:00:41.5]} 76... Re3+ {[%clk 0:00:03.5]} 77. Kf8
{[%clk 0:00:41]} 77... Re5 {[%clk 0:00:04]} 78. Rd6+ {[%clk 0:00:40.5]} 78...
Bd5 {[%clk 0:00:04.9]} 79. Rf6 {[%clk 0:00:39.5]} 79... Ke4 {[%clk 0:00:05.2]}
80. Kg7 {[%clk 0:00:38.2]} 80... Be6 {[%clk 0:00:05.6]} 81. Rg6 {[%clk
0:00:36.2]} 81... Kd5 {[%clk 0:00:06]} 82. Rg2 {[%clk 0:00:35.3]} 82... Kd6
{[%clk 0:00:06.3]} 83. Rf2 {[%clk 0:00:33.2]} 83... Ke7 {[%clk 0:00:06.3]} 84.
Kh6 {[%clk 0:00:30.3]} 84... Bf5 {[%clk 0:00:05.8]} 85. Rf4 {[%clk 0:00:29.5]}
85... Kf6 {[%clk 0:00:05.8]} 86. Kh5 {[%clk 0:00:25.1]} 86... Re7 {[%clk
0:00:05.8]} 87. Kh4 {[%clk 0:00:24.8]} 87... Re3 {[%clk 0:00:06.4]} 88. Kh5
{[%clk 0:00:21.5]} 88... Re1 {[%clk 0:00:03.7]} 89. Kh4 {[%clk 0:00:20.4]} 89...
Re3 {[%clk 0:00:03.9]} 90. Kh5 {[%clk 0:00:17.7]} 90... Ke5 {[%clk 0:00:04.4]}
91. Rh4 {[%clk 0:00:16.7]} 91... Rf3 {[%clk 0:00:04.2]} 92. Kg5 {[%clk
0:00:16.7]} 92... Rg3+ {[%clk 0:00:04.4]} 93. Kh5 {[%clk 0:00:16.8]} 93... Rg8
{[%clk 0:00:04.9]} 94. Kh6 {[%clk 0:00:14.5]} 94... Kf6 {[%clk 0:00:04.9]} 95.
Rb4 {[%clk 0:00:09.6]} 95... Rh8# {[%clk 0:00:05.1]} 0-1

[Event "*** SCC Grand Prix: Titled Tuesday Blitz"]
[Site "Chess.com"]
[Date "2020.07.14"]
[Round "2"]
[White "Steven_Rojas"]
[Black "Michaelson_11"]
[Result "1-0"]
[WhiteElo "2400"]
[BlackElo "2112"]
[TimeControl "180+1"]
[EndTime "10:13:15 PDT"]
[Termination "Steven_Rojas won by resignation"]

1. c4 {[%clk 0:03:00.9]} 1... e5 {[%clk 0:02:59.1]} 2. Nc3 {[%clk 0:03:01.3]}
2... Nf6 {[%clk 0:02:59]} 3. Nf3 {[%clk 0:03:01.7]} 3... Nc6 {[%clk 0:02:57.4]}
4. e3 {[%clk 0:03:02.2]} 4... Bb4 {[%clk 0:02:57.8]} 5. Qc2 {[%clk 0:03:02.2]}
5... Bxc3 {[%clk 0:02:55.1]} 6. Qxc3 {[%clk 0:03:03.1]} 6... e4 {[%clk
0:02:53.1]} 7. Ne5 {[%clk 0:02:48.5]} 7... d5 {[%clk 0:02:47.6]} 8. Nxc6 {[%clk
0:02:43.9]} 8... bxc6 {[%clk 0:02:48.5]} 9. b3 {[%clk 0:02:43.8]} 9... O-O
{[%clk 0:02:46]} 10. Bb2 {[%clk 0:02:41.2]} 10... Bf5 {[%clk 0:02:30.7]} 11. Be2
{[%clk 0:02:38.8]} 11... Re8 {[%clk 0:02:29.5]} 12. g4 {[%clk 0:02:38.2]} 12...
d4 {[%clk 0:02:21.1]} 13. Qxd4 {[%clk 0:02:29]} 13... Qxd4 {[%clk 0:02:08.4]}
14. Bxd4 {[%clk 0:02:29.9]} 14... Bxg4 {[%clk 0:02:03.6]} 15. Bxf6 {[%clk
0:02:29.7]} 15... Bxe2 {[%clk 0:02:02.4]} 16. Rg1 {[%clk 0:02:30.3]} 16... Bh5
{[%clk 0:01:53.3]} 17. Rxg7+ {[%clk 0:02:30.1]} 17... Kf8 {[%clk 0:01:52.9]} 18.
Rxh7 {[%clk 0:02:30.4]} 1-0

[Event "*** SCC Grand Prix: Titled Tuesday Blitz"]
[Site "Chess.com"]
[Date "2020.07.14"]
[Round "2"]
[White "tapu2"]
[Black "Susal_De_Silva"]
[Result "1-0"]
[WhiteElo "2536"]
[BlackElo "2289"]
[TimeControl "180+1"]
[EndTime "10:13:28 PDT"]
[Termination "tapu2 won by resignation"]

1. d4 {[%clk 0:03:00.9]} 1... Nf6 {[%clk 0:03:00.3]} 2. c4 {[%clk 0:03:00.8]}
2... e6 {[%clk 0:03:00.4]} 3. Nf3 {[%clk 0:03:00.8]} 3... b6 {[%clk 0:03:00.4]}
4. a3 {[%clk 0:03:00.3]} 4... Bb7 {[%clk 0:03:00.6]} 5. Nc3 {[%clk 0:03:00.4]}
5... Ne4 {[%clk 0:02:58.9]} 6. Nxe4 {[%clk 0:02:59.9]} 6... Bxe4 {[%clk
0:02:58.5]} 7. e3 {[%clk 0:03:00.8]} 7... Be7 {[%clk 0:02:57.2]} 8. Bd3 {[%clk
0:03:00.7]} 8... Bxd3 {[%clk 0:02:55.6]} 9. Qxd3 {[%clk 0:03:01.6]} 9... f5
{[%clk 0:02:56.3]} 10. O-O {[%clk 0:03:00.8]} 10... O-O {[%clk 0:02:55.5]} 11.
d5 {[%clk 0:02:29.1]} 11... Bf6 {[%clk 0:02:43.9]} 12. Rb1 {[%clk 0:02:24.3]}
12... g6 {[%clk 0:02:33.4]} 13. e4 {[%clk 0:02:19.4]} 13... fxe4 {[%clk
0:02:31]} 14. Qxe4 {[%clk 0:02:19.3]} 14... exd5 {[%clk 0:02:31.2]} 15. Qxd5+
{[%clk 0:02:17.7]} 15... Kg7 {[%clk 0:02:28.9]} 16. Qxa8 {[%clk 0:02:17.2]}
16... c6 {[%clk 0:02:29.6]} 17. Qxa7 {[%clk 0:02:13.7]} 17... Be7 {[%clk
0:02:27.4]} 18. Be3 {[%clk 0:02:06.3]} 18... Rxf3 {[%clk 0:02:24.3]} 19. gxf3
{[%clk 0:02:05.3]} 19... Bd6 {[%clk 0:02:22.3]} 20. Rbd1 {[%clk 0:02:01.4]} 1-0

[Event "*** SCC Grand Prix: Titled Tuesday Blitz"]
[Site "Chess.com"]
[Date "2020.07.14"]
[Round "2"]
[White "Monmoransy"]
[Black "Suleyman_Chess06"]
[Result "1-0"]
[WhiteElo "2633"]
[BlackElo "2301"]
[TimeControl "180+1"]
[EndTime "10:13:39 PDT"]
[Termination "Monmoransy won by resignation"]

1. e4 {[%clk 0:03:00.9]} 1... e6 {[%clk 0:02:57.8]} 2. d4 {[%clk 0:02:57.9]}
2... d5 {[%clk 0:02:58.7]} 3. exd5 {[%clk 0:02:58.6]} 3... exd5 {[%clk
0:02:59.6]} 4. Nf3 {[%clk 0:02:59]} 4... Nc6 {[%clk 0:03:00.1]} 5. Bb5 {[%clk
0:02:58.8]} 5... Bd6 {[%clk 0:02:59.9]} 6. c4 {[%clk 0:02:57.9]} 6... dxc4
{[%clk 0:02:58.6]} 7. d5 {[%clk 0:02:57.5]} 7... a6 {[%clk 0:02:59.2]} 8. Ba4
{[%clk 0:02:58]} 8... b5 {[%clk 0:02:59.4]} 9. dxc6 {[%clk 0:02:58.4]} 9... bxa4
{[%clk 0:02:59.7]} 10. O-O {[%clk 0:02:59.3]} 10... Be6 {[%clk 0:02:59]} 11. Ng5
{[%clk 0:02:45.8]} 11... Nf6 {[%clk 0:02:53.4]} 12. Nxe6 {[%clk 0:02:44.8]}
12... fxe6 {[%clk 0:02:54.3]} 13. Nd2 {[%clk 0:02:29.6]} 13... a3 {[%clk
0:02:51.2]} 14. Nxc4 {[%clk 0:02:27.9]} 14... axb2 {[%clk 0:02:50.2]} 15. Bxb2
{[%clk 0:02:27.5]} 15... O-O {[%clk 0:02:47.3]} 16. Qe2 {[%clk 0:02:26.7]} 16...
Re8 {[%clk 0:02:45.5]} 17. Rad1 {[%clk 0:02:25.2]} 17... Qe7 {[%clk 0:02:45.6]}
18. Rfe1 {[%clk 0:02:05.9]} 18... Bc5 {[%clk 0:02:32.6]} 19. Ne5 {[%clk
0:01:53.6]} 19... Nd5 {[%clk 0:02:30]} 20. Nd7 {[%clk 0:01:46]} 20... Qh4 {[%clk
0:02:20.7]} 21. Nxc5 {[%clk 0:01:41.6]} 1-0

[Event "*** SCC Grand Prix: Titled Tuesday Blitz"]
[Site "Chess.com"]
[Date "2020.07.14"]
[Round "2"]
[White "warmoatmeal"]
[Black "nocnypako"]
[Result "1/2-1/2"]
[WhiteElo "2303"]
[BlackElo "2590"]
[TimeControl "180+1"]
[EndTime "10:13:40 PDT"]
[Termination "Game drawn by repetition"]

1. Nf3 {[%clk 0:02:59.6]} 1... Nf6 {[%clk 0:02:58.5]} 2. d4 {[%clk 0:02:59.2]}
2... g6 {[%clk 0:02:57.2]} 3. c4 {[%clk 0:02:58.9]} 3... Bg7 {[%clk 0:02:57.8]}
4. Nc3 {[%clk 0:02:59.8]} 4... d5 {[%clk 0:02:58.2]} 5. Bg5 {[%clk 0:02:59.8]}
5... Ne4 {[%clk 0:02:58]} 6. cxd5 {[%clk 0:02:58.6]} 6... Nxg5 {[%clk
0:02:57.5]} 7. Nxg5 {[%clk 0:02:59.1]} 7... O-O {[%clk 0:02:58.2]} 8. Nf3 {[%clk
0:02:56.7]} 8... c6 {[%clk 0:02:58.8]} 9. dxc6 {[%clk 0:02:54.4]} 9... Nxc6
{[%clk 0:02:59.7]} 10. e3 {[%clk 0:02:54.8]} 10... e5 {[%clk 0:02:58.9]} 11.
dxe5 {[%clk 0:02:54.1]} 11... Qb6 {[%clk 0:02:32.6]} 12. Qb3 {[%clk 0:02:49.7]}
12... Nxe5 {[%clk 0:02:31.9]} 13. Nxe5 {[%clk 0:02:47.8]} 13... Bxe5 {[%clk
0:02:30.9]} 14. Qxb6 {[%clk 0:02:39.9]} 14... axb6 {[%clk 0:02:29.4]} 15. Bc4
{[%clk 0:02:37.3]} 15... Bf5 {[%clk 0:02:27.7]} 16. Ke2 {[%clk 0:02:35.7]} 16...
Rfc8 {[%clk 0:02:26.1]} 17. Bb3 {[%clk 0:02:35.6]} 17... Bxc3 {[%clk 0:02:24.1]}
18. bxc3 {[%clk 0:02:36.5]} 18... Rxc3 {[%clk 0:02:24.4]} 19. Rac1 {[%clk
0:02:34.5]} 19... Rac8 {[%clk 0:01:54.2]} 20. Kd2 {[%clk 0:02:29.4]} 20... Rd3+
{[%clk 0:01:51.2]} 21. Ke2 {[%clk 0:02:29.4]} 21... Rdc3 {[%clk 0:01:30.4]} 22.
Kd2 {[%clk 0:02:28.4]} 22... Rd3+ {[%clk 0:01:30.1]} 23. Ke2 {[%clk 0:02:27.6]}
23... Rdc3 {[%clk 0:01:28.4]} 1/2-1/2

[Event "*** SCC Grand Prix: Titled Tuesday Blitz"]
[Site "Chess.com"]
[Date "2020.07.14"]
[Round "2"]
[White "Alexander_Moskalenko"]
[Black "szachuspl"]
[Result "0-1"]
[WhiteElo "2777"]
[BlackElo "2517"]
[TimeControl "180+1"]
[EndTime "10:13:46 PDT"]
[Termination "szachuspl won by resignation"]

1. e4 {[%clk 0:03:00.9]} 1... c5 {[%clk 0:02:59.8]} 2. Nc3 {[%clk 0:02:58.9]}
2... e6 {[%clk 0:02:59.2]} 3. g3 {[%clk 0:02:58.1]} 3... Nc6 {[%clk 0:02:55.7]}
4. Bg2 {[%clk 0:02:57.8]} 4... g6 {[%clk 0:02:55.7]} 5. d3 {[%clk 0:02:55.9]}
5... Bg7 {[%clk 0:02:55.7]} 6. Be3 {[%clk 0:02:49.4]} 6... d6 {[%clk 0:02:55.9]}
7. Nge2 {[%clk 0:02:50]} 7... Nd4 {[%clk 0:02:55.9]} 8. Qd2 {[%clk 0:02:47.1]}
8... Ne7 {[%clk 0:02:55.7]} 9. Bh6 {[%clk 0:02:43.3]} 9... Bxh6 {[%clk
0:02:46.4]} 10. Qxh6 {[%clk 0:02:44.2]} 10... Nxc2+ {[%clk 0:02:46.3]} 11. Kd2
{[%clk 0:02:44.9]} 11... Nxa1 {[%clk 0:02:46.3]} 12. Rxa1 {[%clk 0:02:45.8]}
12... Nc6 {[%clk 0:02:34.2]} 13. Qg7 {[%clk 0:02:45.3]} 13... Rf8 {[%clk
0:02:32.2]} 14. Qxh7 {[%clk 0:02:44.9]} 14... Qf6 {[%clk 0:02:29.8]} 15. f4
{[%clk 0:02:44.8]} 15... Rh8 {[%clk 0:02:29]} 16. e5 {[%clk 0:02:45.4]} 16...
dxe5 {[%clk 0:02:25.3]} 17. Bxc6+ {[%clk 0:02:43.7]} 17... Ke7 {[%clk
0:01:57.4]} 18. Ne4 {[%clk 0:02:44.1]} 18... Rxh7 {[%clk 0:01:57.1]} 19. Nxf6
{[%clk 0:02:43.3]} 19... Kxf6 {[%clk 0:01:57.6]} 20. fxe5+ {[%clk 0:02:43.2]}
20... Kxe5 {[%clk 0:01:54.9]} 21. Be8 {[%clk 0:02:41.9]} 21... Kd6 {[%clk
0:01:42]} 22. Rf1 {[%clk 0:02:38.6]} 22... Ke7 {[%clk 0:01:41.4]} 23. Ba4 {[%clk
0:02:36.4]} 23... Rxh2 {[%clk 0:01:40.6]} 24. Ke3 {[%clk 0:02:35.5]} 24... b6
{[%clk 0:01:34.3]} 25. Bc6 {[%clk 0:02:35.2]} 25... Rb8 {[%clk 0:01:34.2]} 26.
Rh1 {[%clk 0:02:36.1]} 26... Rxh1 {[%clk 0:01:34]} 27. Bxh1 {[%clk 0:02:37]}
27... Bb7 {[%clk 0:01:34.5]} 28. Bxb7 {[%clk 0:02:37.9]} 28... Rxb7 {[%clk
0:01:34.7]} 29. Nf4 {[%clk 0:02:38.8]} 29... g5 {[%clk 0:01:34.4]} 30. Nxe6
{[%clk 0:02:39.7]} 30... Kxe6 {[%clk 0:01:34.4]} 0-1